bitfinex-derivatives/quotes_BTCF0:USTF0_20240917
["timestamp","ask_amount","ask_price","bid_price","bid_amount"]
[1726553444072,0.535926,58576.0,58575.0,0.0004]
[1726553444267,0.700926,58576.0,58575.0,0.0004]
[1726553444461,0.615563,58576.0,58575.0,0.0004]
[1726553444660,0.455563,58576.0,58575.0,0.0004]
[1726553446080,0.0094,58576.0,58575.0,0.245764]
[1726553446574,0.0094,58576.0,58575.0,1.357924]
[1726553446770,0.0094,58576.0,58575.0,1.56400257]
[1726553449174,0.0094,58576.0,58575.0,1.47950391]
[1726553449975,0.0094,58576.0,58575.0,1.36685503]
[1726553453171,0.0094,58576.0,58575.0,0.76685503]
[1726553455277,0.0094,58576.0,58575.0,0.25469503]
[1726553456976,0.0094,58576.0,58575.0,0.09469503]
[1726553457171,0.0094,58576.0,58575.0,0.25469503]
[1726553457977,0.0094,58576.0,58575.0,0.36724066]
[1726553462181,0.455563,58576.0,58575.0,0.0004]
[1726553464576,0.455563,58576.0,58575.0,0.1604]
[1726553464781,0.455563,58576.0,58575.0,0.27328167]
[1726553464782,0.094763,58576.0,58575.0,0.27328167]
[1726553464977,0.094763,58576.0,58575.0,0.35792816]
[1726553465194,0.094763,58576.0,58575.0,0.08504649]
[1726553465478,0.455563,58576.0,58575.0,0.0004]
[1726553466678,0.5302,58576.0,58572.0,0.08466583]
[1726553466880,0.085369,58572.0,58571.0,0.08466583]
[1726553467181,0.085375,58568.0,58567.0,0.46220106]
[1726553467374,0.085375,58568.0,58567.0,0.47394964]
[1726553467375,0.085775,58568.0,58567.0,0.47394964]
[1726553467680,0.085375,58568.0,58567.0,0.47394964]
[1726553468380,0.085375,58568.0,58567.0,0.47352243]
[1726553469679,0.086375,58568.0,58567.0,0.47452243]
[1726553471787,0.001,58568.0,58567.0,0.47452243]
[1726553472580,0.001,58568.0,58567.0,0.55989843]
[1726553472974,0.132773,58569.0,58567.0,0.69422748]
[1726553473275,0.132773,58569.0,58568.0,0.11308708]
[1726553473886,0.493573,58569.0,58568.0,0.11308708]
[1726553474481,0.494573,58569.0,58568.0,0.11308708]
[1726553474685,0.494573,58569.0,58568.0,0.19772104]
[1726553474976,0.494573,58569.0,58568.0,0.08503396]
[1726553475381,0.494573,58569.0,58568.0,0.0004]
[1726553475984,0.493573,58569.0,58568.0,0.0004]
[1726553476174,0.493573,58569.0,58568.0,0.0024]
[1726553479373,0.493573,58569.0,58568.0,0.00236]
[1726553480590,0.493573,58569.0,58568.0,0.002]
[1726553481290,0.132773,58569.0,58568.0,0.002]
[1726553481589,0.578946,58569.0,58568.0,0.002]
[1726553483894,0.738946,58569.0,58568.0,0.002]
[1726553484782,0.738946,58569.0,58568.0,0.06968436]
[1726553485385,0.738946,58569.0,58568.0,0.002]
[1726553489793,0.578946,58569.0,58568.0,0.002]
[1726553490790,0.218146,58569.0,58568.0,0.002]
[1726553490983,0.531546,58569.0,58568.0,0.002]
[1726553491490,0.3608,58569.0,58568.0,0.162]
[1726553491691,0.00256143,58571.0,58568.0,0.5228]
[1726553491992,0.17330143,58571.0,58570.0,0.0004]
[1726553492189,0.17330143,58571.0,58570.0,0.06809791]
[1726553492394,0.18216686,58571.0,58570.0,0.0004]
[1726553494791,0.18216686,58571.0,58570.0,0.0024]
[1726553496987,0.18216686,58571.0,58570.0,0.07015893]
[1726553497494,0.18216686,58571.0,58570.0,0.0024]
[1726553497891,0.18216686,58571.0,58570.0,0.07016717]
[1726553500401,0.18216686,58571.0,58570.0,0.0024]
[1726553500700,0.18216686,58571.0,58570.0,0.0701771]
[1726553501487,0.18216686,58571.0,58570.0,0.0024]
[1726553501702,0.18216686,58571.0,58570.0,0.07017953]
[1726553501899,0.18216686,58571.0,58570.0,0.0024]
[1726553505402,0.28449012,58571.0,58570.0,0.0024]
[1726553506115,0.38449012,58571.0,58570.0,0.0024]
[1726553510098,0.28216686,58571.0,58570.0,0.07018719]
[1726553511405,0.00256143,58571.0,58570.0,0.17018719]
[1726553511597,0.0004,58573.0,58570.0,0.35004244]
[1726553511802,0.0004,58573.0,58572.0,0.0004]
[1726553512106,0.0004,58573.0,58572.0,0.24804244]
[1726553512604,0.09826416,58581.0,58572.0,0.24804244]
[1726553512809,0.09426416,58581.0,58580.0,0.06816839]
[1726553513009,0.085356,58581.0,58580.0,0.0004]
[1726553513399,0.085356,58581.0,58580.0,0.06814369]
[1726553514118,0.095356,58581.0,58580.0,0.06814369]
[1726553514502,0.095356,58581.0,58580.0,0.0004]
[1726553514712,0.104356,58581.0,58580.0,0.0004]
[1726553515412,0.019,58581.0,58580.0,0.0004]
[1726553518408,0.104356,58581.0,58580.0,0.0004]
[1726553525321,0.085364,58575.0,58574.0,0.00256085]
[1726553525621,0.245764,58575.0,58574.0,0.00256085]
[1726553526518,0.249764,58575.0,58574.0,0.00256085]
[1726553528014,0.252764,58575.0,58574.0,0.00256085]
[1726553528516,0.35499556,58575.0,58574.0,0.00256085]
[1726553528818,0.36407491,58575.0,58574.0,0.00256085]
[1726553530620,0.26184335,58575.0,58574.0,0.00256085]
[1726553530814,0.62264335,58575.0,58574.0,0.00256085]
[1726553533825,0.26184335,58575.0,58574.0,0.00256085]
[1726553534124,0.56264335,58575.0,58574.0,0.00256085]
[1726553540240,0.66490416,58575.0,58574.0,0.00256085]
[1726553540823,0.30410416,58575.0,58574.0,0.00256085]
[1726553541025,0.66490416,58575.0,58574.0,0.00256085]
[1726553541219,0.30410416,58575.0,58574.0,0.00256085]
[1726553541522,0.66490416,58575.0,58574.0,0.00256085]
[1726553543332,0.56264335,58575.0,58574.0,0.00256085]
[1726553546034,0.20184335,58575.0,58574.0,0.00256085]
[1726553546233,0.56264335,58575.0,58574.0,0.00256085]
[1726553548131,0.20184335,58575.0,58574.0,0.05339001]
[1726553548335,0.56264335,58575.0,58574.0,0.05339001]
[1726553551849,0.56264335,58575.0,58574.0,0.00256085]
[1726553554340,0.085367,58573.0,58572.0,0.0678466]
[1726553554541,0.085767,58573.0,58572.0,0.0678466]
[1726553554838,0.08537,58571.0,58570.0,0.08480825]
[1726553555041,0.18577,58571.0,58570.0,0.08480825]
[1726553555342,0.085373,58569.0,58568.0,0.06]
[1726553555535,0.085773,58569.0,58568.0,0.06]
[1726553555841,0.18822344,58569.0,58568.0,0.06]
[1726553556042,0.085773,58569.0,58568.0,0.06]
[1726553556341,0.18822344,58569.0,58568.0,0.06]
[1726553558533,0.18822344,58569.0,58568.0,0.062]
[1726553561339,0.28822344,58569.0,58568.0,0.062]
[1726553562146,0.185773,58569.0,58568.0,0.1752489]
[1726553563639,0.185773,58569.0,58568.0,0.17524917]
[1726553563841,0.19459376,58569.0,58568.0,0.17524917]
[1726553566945,0.19459376,58569.0,58568.0,0.062]
[1726553567440,0.19459376,58569.0,58568.0,0.12991537]
[1726553568642,0.19459376,58569.0,58568.0,0.062]
[1726553570639,0.09459376,58569.0,58568.0,0.062]
[1726553570946,0.19459376,58569.0,58568.0,0.062]
[1726553571438,0.79220676,58569.0,58568.0,0.062]
[1726553573246,1.15300676,58569.0,58568.0,0.062]
[1726553575750,1.20270676,58569.0,58568.0,0.062]
[1726553575940,0.69046676,58569.0,58568.0,0.062]
[1726553576741,0.32966676,58569.0,58568.0,0.062]
[1726553576950,0.69046676,58569.0,58568.0,0.062]
[1726553578342,0.45539376,58569.0,58568.0,0.062]
[1726553578547,0.55539376,58569.0,58568.0,0.062]
[1726553583554,1.01007705,58569.0,58568.0,0.01374911]
[1726553583856,2.16129534,58569.0,58568.0,0.01374911]
[1726553585247,2.12231705,58569.0,58568.0,0.01374911]
[1726553588149,0.170758,58565.0,58564.0,0.004]
[1726553588352,0.17076,58564.0,58563.0,0.00256094]
[1726553588551,0.53196,58564.0,58563.0,0.00256094]
[1726553588856,0.085391,58557.0,58556.0,0.004]
[1726553589051,0.085394,58555.0,58554.0,0.05091993]
[1726553589247,0.085395,58554.0,58553.0,0.09991993]
[1726553589559,0.185795,58554.0,58553.0,0.09991993]
[1726553589755,0.085396,58553.0,58552.0,0.06]
[1726553590155,0.085796,58553.0,58552.0,0.11087541]
[1726553590456,0.085396,58553.0,58552.0,0.06]
[1726553591358,0.09432163,58553.0,58552.0,0.06]
[1726553591551,0.09532163,58553.0,58552.0,0.06]
[1726553592071,0.18071763,58553.0,58552.0,1e-06]
[1726553592355,0.085405,58547.0,58546.0,0.004]
[1726553592558,0.3612,58547.0,58538.0,0.3608]
[1726553592765,0.085417,58539.0,58538.0,0.3608]
[1726553592958,0.085817,58539.0,58538.0,0.3608]
[1726553593160,0.185417,58539.0,58538.0,0.3608]
[1726553593969,0.186417,58539.0,58538.0,0.3608]
[1726553594262,0.187417,58539.0,58538.0,0.3608]
[1726553595259,0.19637177,58539.0,58538.0,0.3608]
[1726553600460,0.15363887,58539.0,58538.0,0.41167859]
[1726553600650,0.15363887,58539.0,58538.0,0.3608]
[1726553601561,0.085418,58538.0,58537.0,0.0911]
[1726553601764,0.085818,58538.0,58537.0,0.0911]
[1726553602162,0.085818,58538.0,58537.0,0.0459]
[1726553603266,0.087818,58538.0,58537.0,0.0459]
[1726553603867,0.08542,58537.0,58536.0,0.06]
[1726553604161,0.08582,58537.0,58536.0,0.06]
[1726553605971,0.08582,58537.0,58536.0,0.11087859]
[1726553606477,0.08782,58537.0,58536.0,0.11087859]
[1726553606765,0.1024,58537.0,58536.0,0.11087859]
[1726553607270,0.085407,58546.0,58536.0,1.34043537]
[1726553607456,0.1,58548.0,58543.0,0.1004]
[1726553607662,0.1,58545.0,58543.0,0.0004]
[1726553607863,0.185408,58545.0,58543.0,0.05114673]
[1726553608060,0.185408,58545.0,58543.0,0.0004]
[1726553608263,0.08797231,58544.0,58543.0,0.0004]
[1726553608665,0.09763964,58544.0,58543.0,0.0004]
[1726553609066,0.09663964,58544.0,58543.0,0.0004]
[1726553609270,0.09763964,58544.0,58543.0,0.0004]
[1726553609671,0.09863964,58544.0,58543.0,0.0004]
[1726553610475,0.09863964,58544.0,58543.0,0.0014]
[1726553614973,0.01322964,58544.0,58543.0,0.0014]
[1726553615285,0.00456231,58544.0,58543.0,0.0014]
[1726553615461,0.00456231,58544.0,58543.0,0.0479]
[1726553615667,0.00456231,58544.0,58543.0,0.09874337]
[1726553617276,0.00456231,58544.0,58543.0,0.09877794]
[1726553617477,0.00456231,58544.0,58543.0,0.0479]
[1726553617678,0.00456231,58544.0,58543.0,0.0014]
[1726553617866,0.00456231,58544.0,58543.0,0.05227794]
[1726553618272,0.00456231,58544.0,58543.0,0.0014]
[1726553618974,0.08997231,58544.0,58543.0,0.0014]
[1726553624380,0.08997231,58544.0,58543.0,0.05236113]
[1726553624778,0.08997231,58544.0,58543.0,0.0014]
[1726553625279,0.08997231,58544.0,58543.0,0.05236031]
[1726553627082,0.08997231,58544.0,58543.0,0.0014]
[1726553630674,0.45077231,58544.0,58543.0,0.0014]
[1726553630888,0.08997231,58544.0,58543.0,0.0014]
[1726553631683,0.45077231,58544.0,58543.0,0.0014]
[1726553633485,0.00456231,58544.0,58543.0,0.0014]
[1726553633691,0.00456231,58544.0,58543.0,0.05236031]
[1726553633882,0.00456231,58544.0,58543.0,0.0014]
[1726553635484,0.00456231,58544.0,58543.0,0.0508]
[1726553637892,0.10456231,58544.0,58543.0,0.0508]
[1726553642695,0.00456231,58544.0,58543.0,0.0508]
[1726553645987,0.00456231,58544.0,58543.0,0.0014]
[1726553646397,0.08997231,58544.0,58543.0,0.0014]
[1726553646788,0.45077231,58544.0,58543.0,0.0014]
[1726553646989,0.54747231,58544.0,58543.0,0.0014]
[1726553652306,0.64747231,58544.0,58543.0,0.0014]
[1726553654193,1.75991231,58544.0,58543.0,0.0014]
[1726553656198,1.15991231,58544.0,58543.0,0.0014]
[1726553656899,0.79911231,58544.0,58543.0,0.0014]
[1726553657101,1.15991231,58544.0,58543.0,0.0014]
[1726553659298,1.15991231,58544.0,58543.0,0.05234236]
[1726553660600,1.15991231,58544.0,58543.0,0.0014]
[1726553660801,0.64747231,58544.0,58543.0,0.0014]
[1726553663410,0.64747231,58544.0,58543.0,0.05234236]
[1726553664404,0.64747231,58544.0,58543.0,0.0014]
[1726553665802,0.28667231,58544.0,58543.0,0.0014]
[1726553666003,0.64747231,58544.0,58543.0,0.0014]
[1726553666807,0.36536231,58544.0,58543.0,0.0014]
[1726553667211,0.46536231,58544.0,58543.0,0.086811]
[1726553669515,0.46536231,58544.0,58543.0,0.0014]
[1726553670416,0.55077231,58544.0,58543.0,0.0014]
[1726553677731,0.63618231,58544.0,58543.0,0.0014]
[1726553678234,0.085423,58535.0,58534.0,0.06800809]
[1726553678431,0.4612,58535.0,58527.0,0.0849119]
[1726553678637,0.1004,58528.0,58526.0,0.0849119]
[1726553678835,0.0004,58527.0,58525.0,0.4457119]
[1726553679027,0.0004,58526.0,58525.0,0.4457119]
[1726553679237,0.1,58528.0,58525.0,0.55842196]
[1726553679430,0.085431,58530.0,58527.0,0.0004]
[1726553679629,0.446231,58530.0,58529.0,0.0004]
[1726553679934,0.546231,58530.0,58527.0,0.0004]
[1726553680135,0.0004,58528.0,58527.0,0.0004]
[1726553682936,0.0014,58528.0,58527.0,0.0004]
[1726553683335,0.0024,58528.0,58527.0,0.0004]
[1726553685332,0.0024,58528.0,58527.0,0.61296]
[1726553685636,0.0024,58528.0,58527.0,1.21296]
[1726553686435,0.0024,58528.0,58527.0,1.298394]
[1726553689034,0.0024,58528.0,58527.0,1.659194]
[1726553689430,0.0024,58528.0,58527.0,1.659154]
[1726553690644,0.0024,58528.0,58527.0,1.658794]
[1726553690840,0.0024,58528.0,58527.0,1.77108511]
[1726553695048,0.0024,58528.0,58527.0,1.41028511]
[1726553695343,0.0024,58528.0,58527.0,1.77108511]
[1726553695741,0.0024,58528.0,58527.0,1.77109313]
[1726553698346,0.0024,58528.0,58527.0,1.67109313]
[1726553698650,0.0024,58528.0,58527.0,0.55853313]
[1726553699548,0.0024,58528.0,58527.0,0.66030303]
[1726553699950,0.0090524,58528.0,58527.0,0.66030303]
[1726553700252,0.085432,58529.0,58527.0,0.66030303]
[1726553700554,0.085432,58529.0,58528.0,0.21446903]
[1726553701643,0.09666253,58535.0,58528.0,0.29990203]
[1726553701840,0.09666253,58535.0,58534.0,0.185824]
[1726553701841,0.00256253,58535.0,58534.0,0.185824]
[1726553702144,0.00256253,58535.0,58534.0,0.29812313]
[1726553702445,0.00256253,58535.0,58534.0,1.51241303]
[1726553702640,0.0496,58546.0,58543.0,0.085411]
[1726553702842,0.3231,58550.0,58543.0,0.28249009]
[1726553703043,0.3231,58550.0,58543.0,0.19758609]
[1726553703244,0.3231,58550.0,58543.0,0.34597608]
[1726553703457,0.3608,58554.0,58543.0,0.24408609]
[1726553703639,0.0984,58556.0,58543.0,1.51528586]
[1726553703948,0.00256182,58557.0,58555.0,0.0004]
[1726553704250,0.00256182,58557.0,58556.0,0.1004]
[1726553704456,0.00256182,58557.0,58556.0,0.1]
[1726553706563,0.00356182,58557.0,58556.0,0.101]
[1726553708453,0.01261845,58557.0,58556.0,0.101]
[1726553711454,0.01005663,58557.0,58556.0,0.101]
[1726553712062,0.01005663,58557.0,58556.0,0.001]
[1726553717460,0.09544763,58557.0,58556.0,0.001]
[1726553723265,0.09544763,58557.0,58553.0,0.00256164]
[1726553723464,0.546195,58554.0,58553.0,0.00256164]
[1726553723972,0.546595,58554.0,58553.0,0.00256164]
[1726553724658,0.546595,58554.0,58553.0,0.00456164]
[1726553724964,0.546595,58554.0,58553.0,0.00756164]
[1726553725558,0.185795,58554.0,58553.0,0.00756164]
[1726553725958,0.0004,58554.0,58553.0,0.00756164]
[1726553726163,0.0004,58554.0,58553.0,0.00456164]
[1726553726355,0.0004,58554.0,58553.0,0.00256164]
[1726553726561,0.0064,58554.0,58553.0,0.00356164]
[1726553726766,0.0104,58554.0,58553.0,0.00356164]
[1726553726968,0.0104,58554.0,58553.0,0.08895764]
[1726553727670,1e-08,58554.0,58553.0,0.61045813]
[1726553727971,1e-08,58554.0,58553.0,0.25809813]
[1726553728170,1e-08,58554.0,58553.0,1.4552617]
[1726553728469,1e-08,58554.0,58553.0,1.48359978]
[1726553731464,0.00256161,58561.0,58560.0,0.085386]
[1726553731772,0.00256161,58561.0,58560.0,0.71968403]
[1726553732178,0.00256161,58561.0,58560.0,0.8044301]
[1726553732373,0.00256161,58561.0,58560.0,0.71968403]
[1726553732674,0.00256161,58561.0,58560.0,0.72068403]
[1726553732675,0.01356161,58561.0,58560.0,0.72068403]
[1726553732882,0.01356161,58561.0,58560.0,0.81878403]
[1726553733271,0.01356161,58561.0,58560.0,0.92054831]
[1726553733571,0.01356161,58561.0,58560.0,2.03282831]
[1726553733774,0.00895504,58568.0,58560.0,1.84567803]
[1726553733964,0.77015,58571.0,58567.0,0.085776]
[1726553734169,0.44617,58571.0,58570.0,0.0004]
[1726553734365,0.44617,58571.0,58567.0,0.085776]
[1726553734673,0.0004,58568.0,58567.0,0.085776]
[1726553735361,0.0054,58568.0,58567.0,0.085776]
[1726553735976,0.0054,58568.0,58567.0,0.086776]
[1726553736976,0.0054,58568.0,58567.0,0.246776]
[1726553737565,0.0074,58568.0,58567.0,0.247776]
[1726553738172,0.0164,58568.0,58567.0,0.247776]
[1726553742073,0.0164,58568.0,58567.0,0.0024]
[1726553742274,0.101775,58568.0,58567.0,0.0024]
[1726553746380,0.0164,58568.0,58567.0,0.0024]
[1726553747081,0.0164,58568.0,58567.0,0.087776]
[1726553749484,0.0164,58568.0,58567.0,0.0024]
[1726553749671,0.101775,58568.0,58567.0,0.0024]
[1726553756186,0.0164,58568.0,58567.0,0.0024]
[1726553756577,0.0164,58568.0,58567.0,0.087776]
[1726553757583,0.0164,58568.0,58567.0,0.15552343]
[1726553757973,0.0164,58568.0,58567.0,0.087776]
[1726553760785,0.0164,58568.0,58567.0,0.0024]
[1726553760786,0.101775,58568.0,58567.0,0.0024]
[1726553760981,0.20418449,58568.0,58567.0,0.0024]
[1726553761581,0.20419191,58568.0,58567.0,0.0024]
[1726553761988,0.101775,58568.0,58567.0,0.0024]
[1726553762487,0.20419274,58568.0,58567.0,0.0024]
[1726553764587,0.101775,58568.0,58567.0,0.0024]
[1726553771688,0.462575,58568.0,58567.0,0.0024]
[1726553771889,0.101775,58568.0,58567.0,0.0024]
[1726553772982,0.50180575,58568.0,58567.0,0.0024]
[1726553773288,0.462575,58568.0,58567.0,0.0024]
[1726553774391,0.50177002,58568.0,58567.0,0.0024]
[1726553775401,0.50176009,58568.0,58567.0,0.0024]
[1726553776799,0.101775,58568.0,58567.0,0.1624]
[1726553777394,0.101775,58568.0,58567.0,0.0024]
[1726553777804,0.50192841,58568.0,58567.0,0.0024]
[1726553778100,0.14112841,58568.0,58567.0,0.0024]
[1726553778693,0.50192841,58568.0,58567.0,0.0024]
[1726553778894,0.62140615,58568.0,58567.0,0.0024]
[1726553780199,0.462575,58568.0,58567.0,0.0024]
[1726553784305,0.101775,58568.0,58567.0,0.0024]
[1726553788904,0.462575,58568.0,58567.0,0.0024]
[1726553792006,0.101775,58568.0,58567.0,0.0024]
[1726553792207,0.462575,58568.0,58567.0,0.0024]
[1726553795611,0.50174794,58568.0,58567.0,0.0024]
[1726553799413,0.14094794,58568.0,58567.0,0.0024]
[1726553799605,0.50174794,58568.0,58567.0,0.0024]
[1726553802716,0.101775,58568.0,58567.0,0.0024]
[1726553802906,0.462575,58568.0,58567.0,0.0024]
[1726553803106,0.101775,58568.0,58567.0,0.0024]
[1726553803311,0.462575,58568.0,58567.0,0.0024]
[1726553804611,0.101775,58568.0,58567.0,0.0024]
[1726553804813,0.462575,58568.0,58567.0,0.0024]
[1726553806419,0.54795,58568.0,58567.0,0.0024]
[1726553807322,0.54795,58568.0,58567.0,0.05342239]
[1726553809615,1.66019,58568.0,58567.0,0.05342239]
[1726553810722,1.69940772,58568.0,58567.0,0.0024]
[1726553812030,1.09940772,58568.0,58567.0,0.0024]
[1726553812229,1.69940772,58568.0,58567.0,0.0024]
[1726553813322,1.8189354,58568.0,58567.0,0.0024]
[1726553813517,1.86444371,58568.0,58567.0,0.0024]
[1726553813722,1.74491603,58568.0,58567.0,0.0024]
[1726553814227,1.57416603,58568.0,58562.0,0.004]
[1726553814530,1.57416603,58568.0,58555.0,0.004]
[1726553814531,0.4612,58563.0,58555.0,0.004]
[1726553814825,0.4612,58563.0,58553.0,0.00656164]
[1726553814826,0.085395,58554.0,58553.0,0.00656164]
[1726553815032,0.48543607,58554.0,58553.0,0.00256164]
[1726553815325,0.446595,58554.0,58553.0,0.00256164]
[1726553815627,0.48629337,58554.0,58553.0,0.00256164]
[1726553816528,0.446595,58554.0,58553.0,0.00256164]
[1726553816928,0.446595,58554.0,58553.0,0.00656164]
[1726553817334,0.446595,58554.0,58553.0,0.00856164]
[1726553817825,0.446595,58554.0,58553.0,0.00656164]
[1726553818923,0.446595,58554.0,58553.0,0.00256164]
[1726553819120,0.446595,58554.0,58553.0,0.00456164]
[1726553819629,0.447595,58554.0,58553.0,0.00456164]
[1726553819828,0.447595,58554.0,58553.0,0.00356164]
[1726553820223,0.447595,58554.0,58553.0,0.10356164]
[1726553820832,0.547595,58554.0,58553.0,0.00356164]
[1726553821834,0.55649696,58554.0,58553.0,0.00356164]
[1726553822729,0.45649696,58554.0,58553.0,0.00356164]
[1726553826433,0.45649696,58554.0,58553.0,0.101]
[1726553828829,0.09569696,58554.0,58553.0,0.101]
[1726553830739,0.09569696,58554.0,58553.0,0.001]
[1726553830939,0.19569696,58554.0,58553.0,0.001]
[1726553833342,0.19569696,58554.0,58553.0,0.05202239]
[1726553834145,0.19569696,58554.0,58553.0,0.001]
[1726553836934,0.55649696,58554.0,58553.0,0.001]
[1726553838849,0.45649696,58554.0,58553.0,0.001]
[1726553840843,0.37110196,58554.0,58553.0,0.001]
[1726553841045,0.0014,58554.0,58553.0,0.001]
[1726553841248,0.0014,58554.0,58553.0,0.15431226]
[1726553841453,0.0014,58554.0,58553.0,0.086396]
[1726553841952,0.0014,58554.0,58553.0,0.09558608]
[1726553842344,0.0014,58554.0,58553.0,0.086396]
[1726553842756,0.086795,58554.0,58553.0,0.001]
[1726553843652,0.086795,58554.0,58553.0,0.06900131]
[1726553844051,0.447595,58554.0,58553.0,0.06900131]
[1726553844257,0.447595,58554.0,58553.0,0.05201942]
[1726553844655,0.495695,58554.0,58553.0,0.05201942]
[1726553844850,0.495695,58554.0,58553.0,0.001]
[1726553847347,1.71035668,58554.0,58553.0,0.001]
[1726553847758,1.69336092,58554.0,58553.0,0.001]
[1726553848261,1.73292435,58554.0,58553.0,0.001]
[1726553849155,1.85239048,58554.0,58553.0,0.001]
[1726553849664,0.085405,58547.0,58546.0,0.004]
[1726553849866,0.08541,58544.0,58542.0,0.00256227]
[1726553850162,0.18541,58544.0,58542.0,0.00256227]
[1726553850459,0.085411,58543.0,58542.0,0.00256227]
[1726553851168,0.085411,58543.0,58542.0,0.01356227]
[1726553851871,0.077411,58543.0,58542.0,0.01356227]
[1726553852576,0.077411,58543.0,58542.0,0.00256227]
[1726553852779,0.077411,58543.0,58542.0,0.02256227]
[1726553852780,0.079411,58543.0,58542.0,0.02256227]
[1726553853162,0.078411,58543.0,58542.0,0.01156227]
[1726553853365,0.079411,58543.0,58542.0,0.01956227]
[1726553853878,0.440211,58543.0,58542.0,0.01956227]
[1726553854666,0.079411,58543.0,58542.0,0.01956227]
[1726553854974,0.440211,58543.0,58542.0,0.01956227]
[1726553855467,0.44913267,58543.0,58542.0,0.01956227]
[1726553855665,0.44913267,58543.0,58542.0,0.07058169]
[1726553855876,0.44913267,58543.0,58542.0,0.07054571]
[1726553858968,0.44913267,58543.0,58542.0,0.01956227]
[1726553859779,0.53454367,58543.0,58542.0,0.01956227]
[1726553860274,1.04698367,58543.0,58542.0,0.01956227]
[1726553860674,1.64698367,58543.0,58542.0,0.01956227]
[1726553860975,0.17084,58537.0,58536.0,0.004]
[1726553861276,0.17084,58537.0,58530.0,0.05098344]
[1726553861277,0.085429,58531.0,58530.0,0.05098344]
[1726553861475,0.4612,58531.0,58526.0,0.05498344]
[1726553861678,0.1004,58527.0,58526.0,0.05098344]
[1726553861879,0.1,58527.0,58526.0,0.05098344]
[1726553862290,0.085436,58526.0,58524.0,0.05098344]
[1726553862589,0.171837,58525.0,58524.0,0.05098344]
[1726553862776,0.085439,58524.0,58521.0,0.046]
[1726553862973,0.0004,58522.0,58521.0,0.046]
[1726553863181,0.1,58522.0,58521.0,0.046]
[1726553863770,0.088,58522.0,58521.0,0.046]
[1726553863968,0.245439,58524.0,58521.0,0.046]
[1726553864173,0.245439,58524.0,58523.0,0.0004]
[1726553865580,0.086439,58524.0,58523.0,0.0004]
[1726553866082,0.09537637,58524.0,58523.0,0.0004]
[1726553866474,0.09637637,58524.0,58523.0,0.0004]
[1726553867076,0.25637637,58524.0,58523.0,0.0004]
[1726553869587,0.09637637,58524.0,58523.0,0.0004]
[1726553870892,0.0536325,58524.0,58523.0,0.0004]
[1726553875191,0.0536325,58524.0,58523.0,0.05138344]
[1726553876693,0.2136325,58524.0,58523.0,0.05138344]
[1726553877191,0.2136325,58524.0,58523.0,0.0004]
[1726553880889,0.2136325,58524.0,58523.0,0.06840131]
[1726553883893,0.1536325,58524.0,58523.0,0.06840131]
[1726553884098,0.1536325,58524.0,58523.0,0.0004]
[1726553887398,0.1989325,58524.0,58523.0,0.0004]
[1726553888300,0.1989325,58524.0,58523.0,0.051403]
[1726553888493,0.1536325,58524.0,58523.0,0.051403]
[1726553888796,0.01093737,58524.0,58523.0,0.0004]
[1726553889001,0.002,58524.0,58523.0,0.18584]
[1726553889191,0.002,58524.0,58523.0,0.23484]
[1726553890100,0.002,58524.0,58523.0,0.13484]
[1726553891094,0.002,58524.0,58523.0,0.21973533]
[1726553891899,0.002,58524.0,58523.0,0.13484]
[1726553892507,0.002,58524.0,58523.0,0.08584]
[1726553893006,0.002,58524.0,58523.0,0.30186768]
[1726553893307,0.002,58524.0,58523.0,0.19999328]
[1726553893506,0.002,58524.0,58523.0,0.30186768]
[1726553894205,0.002,58524.0,58523.0,0.21642768]
[1726553894405,0.087439,58524.0,58523.0,0.11455328]
[1726553899911,0.087439,58524.0,58523.0,0.0004]
[1726553901204,0.187439,58524.0,58523.0,0.0004]
[1726553901512,0.234739,58524.0,58523.0,0.05154176]
[1726553904198,0.234739,58524.0,58523.0,0.0004]
[1726553904915,0.234739,58524.0,58523.0,0.05154176]
[1726553907618,0.234739,58524.0,58523.0,0.0004]
[1726553908114,0.234739,58524.0,58523.0,0.11480087]
[1726553909819,0.234739,58524.0,58523.0,0.20002442]
[1726553910015,0.234739,58524.0,58523.0,0.11480087]
[1726553910319,0.234739,58524.0,58523.0,0.20002696]
[1726553910614,0.282939,58524.0,58523.0,0.20002696]
[1726553911813,0.282939,58524.0,58523.0,0.20001325]
[1726553912518,0.187439,58524.0,58523.0,0.11478716]
[1726553913415,0.087439,58524.0,58523.0,0.11478716]
[1726553913815,0.087439,58524.0,58523.0,0.21666156]
[1726553914019,0.087439,58524.0,58523.0,0.11478716]
[1726553915711,0.002,58524.0,58523.0,0.21666156]
[1726553915912,0.002,58524.0,58523.0,0.0004]
[1726553916222,0.002,58524.0,58523.0,0.1004]
[1726553919119,0.002,58524.0,58523.0,0.18584]
[1726553920923,0.187439,58524.0,58523.0,0.08584]
[1726553922119,0.087439,58524.0,58523.0,0.08584]
[1726553922933,0.0446946,58524.0,58523.0,0.30191839]
[1726553923918,0.0446946,58524.0,58523.0,0.20004399]
[1726553924321,0.0446946,58524.0,58523.0,0.30191839]
[1726553924525,0.0446946,58524.0,58523.0,0.20004399]
[1726553926318,0.0446946,58524.0,58523.0,0.30191839]
[1726553927620,0.0446946,58524.0,58523.0,0.20004399]
[1726553927822,0.0446946,58524.0,58523.0,0.30191839]
[1726553928022,0.0446946,58524.0,58523.0,0.20004399]
[1726553928228,0.00894308,58525.0,58524.0,0.085439]
[1726553928431,0.085433,58528.0,58525.0,0.085436]
[1726553928628,0.133626,58533.0,58527.0,0.18802897]
[1726553928837,0.133626,58533.0,58532.0,0.0004]
[1726553929034,0.00916604,58533.0,58532.0,0.19877598]
[1726553929328,0.36336332,58534.0,58532.0,0.08515574]
[1726553929534,0.36336332,58534.0,58533.0,0.1004]
[1726553929924,0.36336332,58534.0,58533.0,0.29917337]
[1726553930332,0.36336332,58534.0,58533.0,0.18555574]
[1726553930525,0.36336332,58534.0,58533.0,0.29915114]
[1726553931325,0.36336332,58534.0,58533.0,0.1004]
[1726553931730,0.37239816,58534.0,58533.0,0.0004]